lending/lending_fUSD_20240208
["ID","MTS","AMOUNT","RATE_DAILY","PERIOD"]
[313445455,1707352250125,-650.0,0.00049041,120]
[313445456,1707352250134,-650.0,0.00049041,120]
[313445457,1707352250144,-650.0,0.00049041,120]
[313445458,1707352250153,-650.0,0.00049041,120]
[313445459,1707352250162,-650.0,0.00049041,120]
[313445460,1707352250171,-650.0,0.00049041,120]
[313445461,1707352250181,-650.0,0.00049041,120]
[313445462,1707352250190,-650.0,0.00049041,120]
[313445463,1707352250200,-650.0,0.00049041,120]
[313445464,1707352250209,-650.0,0.00049041,120]
[313445465,1707352250219,-233.63373969,0.00049041,120]
[313445466,1707352250228,-600.0,0.00049041,61]
[313445467,1707352250238,-150.0,0.0004906,2]
[313445468,1707352250247,-150.0,0.00049088,7]
[313445469,1707352250256,-13217.0,0.0004909,2]
[313445470,1707352250266,-1631.0,0.0004909,2]
[313445471,1707352250277,-200.0,0.000491,7]
[313445472,1707352250288,-200.0,0.000491,7]
[313445473,1707352250298,-200.0,0.000491,7]
[313445474,1707352250308,-200.0,0.000491,7]
[313445475,1707352250317,-200.0,0.000491,7]
[313445476,1707352250328,-200.0,0.000491,7]
[313445477,1707352250337,-200.0,0.000491,7]
[313445478,1707352250347,-200.0,0.000491,7]
[313445479,1707352250357,-200.0,0.000491,7]
[313445480,1707352250368,-200.0,0.000491,7]
[313445481,1707352250379,-200.0,0.000491,7]
[313445482,1707352250388,-500.0,0.000491,14]
[313445483,1707352250397,-253.59,0.000491,7]
[313445484,1707352250406,-150.0,0.000491,39]
[313445485,1707352250416,-3000.0,0.000491,55]
[313445486,1707352250426,-237.576057,0.000491,29]
[313445487,1707352250435,-1983.731131,0.000491,29]
[313445488,1707352250444,-256.327724,0.000491,77]
[313445489,1707352250453,-302.182049,0.000491,11]
[313445490,1707352250463,-200.0,0.000491,2]
[313445491,1707352250473,-500.0,0.000491,25]
[313445492,1707352250482,-207.40121661,0.000491,7]
[313445493,1707352250491,-200.0,0.000491,7]
[313445494,1707352250500,-200.0,0.000491,7]
[313445495,1707352250510,-200.0,0.000491,7]
[313445496,1707352250520,-200.0,0.000491,7]
[313445497,1707352250529,-1847.03,0.00049109,120]
[313445498,1707352250539,-1847.03,0.00049109,120]
[313445499,1707352250548,-1847.03,0.00049109,120]
[313445500,1707352250558,-150.0,0.00049109,9]
[313445501,1707352250567,-150.0,0.00049109,9]
[313445502,1707352250577,-3000.0,0.0004911,55]
[313445503,1707352250587,-21363.14,0.0004911,2]
[313445504,1707352250597,-21363.14,0.0004911,2]
[313445505,1707352250951,-21363.14,0.0004911,2]
[313445506,1707352250992,-21363.14,0.0004911,2]
[313445507,1707352251002,-21363.14,0.0004911,2]
[313445508,1707352251012,-21363.14,0.0004911,2]
[313445509,1707352251021,-21363.14,0.0004911,2]
[313445510,1707352251030,-21363.14,0.0004911,2]
[313445511,1707352251040,-21363.14,0.0004911,2]
[313445512,1707352251050,-21363.14,0.0004911,2]
[313445513,1707352251059,-21363.14,0.0004911,2]
[313445514,1707352251069,-21363.14,0.0004911,2]
[313445515,1707352251078,-21363.14,0.0004911,2]
[313445516,1707352251088,-21363.14,0.0004911,2]
[313445517,1707352251097,-21363.14,0.0004911,2]
[313445518,1707352251108,-21363.14,0.0004911,2]
[313445519,1707352251117,-21363.14,0.0004911,2]
[313445520,1707352251127,-21363.14,0.0004911,2]
[313445521,1707352251136,-21363.14,0.0004911,2]
[313445522,1707352251146,-21363.14,0.0004911,2]
[313445523,1707352251156,-21363.14,0.0004911,2]
[313445524,1707352251165,-21363.14,0.0004911,2]
[313445525,1707352251175,-21363.14,0.0004911,2]
[313445526,1707352251185,-21363.14,0.0004911,2]
[313445527,1707352251195,-21363.14,0.0004911,2]
[313445528,1707352251204,-21363.14,0.0004911,2]
[313445529,1707352251215,-21363.14,0.0004911,2]
[313445530,1707352251224,-21363.2954,0.0004911,2]
[313445531,1707352251234,-255.717792,0.0004911,14]
[313445532,1707352251243,-255.717792,0.0004911,14]
[313445533,1707352251253,-255.717792,0.0004911,14]
[313445534,1707352251262,-255.717792,0.0004911,14]
[313445535,1707352251271,-495.173539,0.0004911,14]
[313445536,1707352251281,-495.173539,0.0004911,14]
[313445537,1707352251292,-495.173539,0.0004911,14]
[313445538,1707352251302,-495.173539,0.0004911,14]
[313445539,1707352251312,-5456.738082,0.0004912,55]
[313445540,1707352251322,-423.89612502,0.00049122,30]
[313445541,1707352251331,-277.2722801,0.00049133,7]
[313445542,1707352251342,-150.0,0.00049143,7]
[313445543,1707352251351,-150.0,0.00049159,7]
[313445544,1707352251362,-150.0,0.00049165,7]
[313445545,1707352251373,-223.29177384,0.0004918,30]
[313445546,1707352251382,-338.6502713,0.0004918,30]
[313445547,1707352251392,-152.39262208,0.0004918,30]
[313445548,1707352251402,-1135.85267696,0.0004918,30]
[313445549,1707352251412,-1000.0,0.0004918,30]
[313445550,1707352251421,-192.90958617,0.0004918,30]
[313445551,1707352251430,-1000.0,0.0004918,30]
[313445552,1707352251440,-511.70290627,0.0004918,30]
[313445553,1707352251449,-555.0208,0.00049198,28]
[313445554,1707352251459,-603.03,0.000492,7]
[313445555,1707352251469,-709.99,0.000492,7]
[313445556,1707352251478,-500.0,0.000492,25]
[313445557,1707352251489,-150.0,0.000492,20]
[313445558,1707352251498,-211.0,0.0004921,30]
[313445559,1707352251507,-218.0,0.0004921,30]
[313445560,1707352251517,-202.0,0.0004921,30]
[313445561,1707352251526,-150.0,0.00049212,7]
[313445562,1707352251536,-2350.34358762,0.00049214,120]
[313445563,1707352251545,-604.37844804,0.00049215,2]
[313445564,1707352251554,-272.55270091,0.00049221,7]
[313445565,1707352251563,-150.0,0.00049234,7]
[313445566,1707352251573,-223.0,0.0004924,30]
[313445567,1707352251582,-208.0,0.0004924,30]
[313445568,1707352251591,-208.0,0.0004924,30]
[313445569,1707352251600,-150.0,0.0004927,7]
[313445570,1707352251610,-150.0,0.00049281,7]
[313445571,1707352251619,-150.0,0.00049294,7]
[313445572,1707352251629,-185.0,0.000493,30]
[313445573,1707352251638,-500.0,0.000493,25]
[313445574,1707352251647,-2476.56354704,0.00049313,4]
[313445575,1707352251657,-3340.44797552,0.00049313,4]
[313445576,1707352251666,-217.45925662,0.00049313,4]
[313445577,1707352251675,-503.23980836,0.00049313,4]
[313445578,1707352251684,-155.0,0.00049313,2]
[313445579,1707352251694,-150.0,0.00049314,7]
[313445580,1707352251703,-1624.75559555,0.00049314,25]
[313445581,1707352251713,-1847.03,0.00049314,120]
[313445582,1707352251721,-1847.03,0.00049314,120]
[313445583,1707352251731,-1847.03,0.00049314,120]
[313445584,1707352251741,-1847.03,0.00049314,120]
[313445585,1707352251750,-1847.03,0.00049314,120]
[313445586,1707352251759,-1847.03,0.00049314,120]
[313445587,1707352251768,-1847.03,0.00049314,120]
[313445588,1707352251778,-1847.03,0.00049314,120]
[313445589,1707352251787,-1847.03971758,0.00049314,120]
[313445590,1707352251796,-150.0,0.00049314,9]
[313445591,1707352251805,-276.99034687,0.00049314,9]
[313445592,1707352251814,-150.0,0.00049314,9]
[313445593,1707352251823,-500.0,0.00049315,30]
[313445594,1707352251832,-2000.0,0.00049315,61]
[313445595,1707352251841,-2000.0,0.00049315,61]
[313445596,1707352251851,-240.46570442,0.00049315,61]
[313445597,1707352251861,-500.0,0.00049315,40]
[313445598,1707352251870,-500.0,0.00049315,30]
[313445599,1707352251880,-500.0,0.00049315,30]
[313445600,1707352251890,-468.90720499,0.00049315,61]
[313445601,1707352251900,-500.0,0.00049315,30]
[313445602,1707352251910,-494.51360164,0.00049315,61]
[313445603,1707352251919,-500.0,0.00049315,61]
[313445604,1707352251929,-229.31652127,0.00049315,61]
[313445605,1707352251938,-500.0,0.00049315,61]
[313445606,1707352251947,-200.26101007,0.00049315,61]
[313445607,1707352251957,-500.0,0.00049315,61]
[313445608,1707352251966,-500.0,0.00049315,61]
[313445609,1707352251975,-512.06925129,0.00049315,61]
[313445610,1707352251984,-566.31275777,0.00049315,61]
[313445611,1707352251994,-500.0,0.00049315,61]
[313445612,1707352252003,-522.65672878,0.00049315,61]
[313445613,1707352252013,-174.9709265,0.00049315,61]
[313445614,1707352252023,-647.55944887,0.00049315,61]
[313445615,1707352252033,-500.0,0.00049315,61]
[313445616,1707352252043,-500.0,0.00049315,61]
[313445617,1707352252053,-500.0,0.00049315,61]
[313445618,1707352252064,-500.0,0.00049315,61]
[313445619,1707352252075,-500.0,0.00049315,61]
[313445620,1707352252085,-500.0,0.00049315,61]
[313445621,1707352252098,-500.0,0.00049315,61]
[313445622,1707352252110,-500.0,0.00049315,61]
[313445623,1707352252121,-345.3212728,0.00049315,61]
[313445624,1707352252132,-500.0,0.00049315,61]
[313445625,1707352252143,-500.0,0.00049315,61]
[313445626,1707352252155,-500.58608151,0.00049315,61]
[313445627,1707352252166,-500.0,0.00049315,61]
[313445628,1707352252177,-357.39310861,0.00049315,61]
[313445629,1707352252188,-500.0,0.00049315,61]
[313445630,1707352252198,-500.0,0.00049315,61]
[313445631,1707352252208,-500.0,0.00049315,61]
[313445632,1707352252218,-500.0,0.00049315,61]
[313445633,1707352252228,-323.79319011,0.00049315,61]
[313445634,1707352252238,-500.0,0.00049315,61]
[313445635,1707352252248,-500.0,0.00049315,61]
[313445636,1707352252258,-500.0,0.00049315,61]
[313445637,1707352252269,-500.0,0.00049315,61]
[313445638,1707352252280,-222.847383,0.00049315,61]
[313445639,1707352252297,-167.60633698,0.00049315,61]
[313445640,1707352252309,-500.0,0.00049315,61]
[313445641,1707352252319,-531.60589961,0.00049315,61]
[313445642,1707352252334,-502.3202472,0.00049315,61]
[313445643,1707352252348,-291.84636031,0.00049315,61]
[313445644,1707352252360,-500.0,0.00049315,61]
[313445645,1707352252373,-500.0,0.00049315,61]
[313445646,1707352252383,-500.0,0.00049315,61]
[313445647,1707352252396,-500.0,0.00049315,61]
[313445648,1707352252406,-566.59,0.00049315,61]
[313445649,1707352252415,-500.0,0.00049315,61]
[313445650,1707352252424,-500.0,0.00049315,61]
[313445651,1707352252434,-540.18477442,0.00049315,61]
[313445652,1707352252447,-519.59061461,0.00049315,61]
[313445653,1707352252456,-500.0,0.00049315,61]
[313445654,1707352252466,-633.09,0.00049315,61]
[313445655,1707352252475,-500.0,0.00049315,61]
[313445656,1707352252485,-505.45949062,0.00049315,61]
[313445657,1707352252494,-731.32,0.00049315,61]
[313445658,1707352252503,-500.0,0.00049315,61]
[313445659,1707352252512,-500.0,0.00049315,61]
[313445660,1707352252521,-500.0,0.00049315,61]
[313445661,1707352252531,-513.0640488,0.00049315,61]
[313445662,1707352252541,-511.47,0.00049315,61]
[313445663,1707352252549,-500.0,0.00049315,61]
[313445664,1707352252559,-500.0,0.00049315,61]
[313445665,1707352252568,-500.0,0.00049315,61]
[313445666,1707352252577,-809.39,0.00049315,61]
[313445667,1707352252586,-500.0,0.00049315,61]
[313445668,1707352252595,-500.0,0.00049315,61]
[313445669,1707352252605,-500.0,0.00049315,61]
[313445670,1707352252617,-500.0,0.00049315,61]
[313445671,1707352252626,-500.0,0.00049315,61]
[313445672,1707352252635,-500.0,0.00049315,61]
[313445673,1707352252644,-500.0,0.00049315,61]
[313445674,1707352252654,-500.0,0.00049315,61]
[313445675,1707352252663,-500.0,0.00049315,61]
[313445676,1707352252672,-500.0,0.00049315,61]
[313445677,1707352252681,-500.0,0.00049315,61]
[313445678,1707352252691,-500.0,0.00049315,61]
[313445679,1707352252700,-644.64,0.00049315,61]
[313445680,1707352252710,-810.57,0.00049315,61]
[313445681,1707352252720,-500.0,0.00049315,61]
[313445682,1707352252732,-500.0,0.00049315,61]
[313445683,1707352252741,-500.0,0.00049315,61]
[313445684,1707352252750,-500.0,0.00049315,61]
[313445685,1707352252760,-500.0,0.00049315,61]
[313445686,1707352252770,-500.0,0.00049315,61]
[313445687,1707352252779,-500.0,0.00049315,61]
[313445688,1707352252788,-500.0,0.00049315,61]
[313445689,1707352252797,-500.0,0.00049315,61]
[313445690,1707352252806,-500.0,0.00049315,61]
[313445691,1707352252815,-500.0,0.00049315,61]
[313445692,1707352252825,-500.0,0.00049315,61]
[313445693,1707352252834,-500.0,0.00049315,61]
[313445694,1707352252843,-500.0,0.00049315,61]
[313445695,1707352252853,-520.52062986,0.00049315,61]
[313445696,1707352252865,-500.0,0.00049315,61]
[313445697,1707352252874,-500.0,0.00049315,61]
[313445698,1707352252883,-500.0,0.00049315,61]
[313445699,1707352252892,-500.0,0.00049315,61]
[313445700,1707352252902,-500.0,0.00049315,61]
[313445701,1707352252911,-500.0,0.00049315,61]
[313445702,1707352252920,-500.0,0.00049315,61]
[313445703,1707352252929,-200.0,0.00049315,61]
[313445704,1707352252938,-500.0,0.00049315,61]
[313445705,1707352252947,-500.0,0.00049315,61]
[313445706,1707352252956,-646.64772752,0.00049315,61]
[313445707,1707352252966,-611.67,0.00049315,61]
[313445708,1707352252975,-500.0,0.00049315,61]
[313445709,1707352252984,-175.15972697,0.00049315,61]
[313445710,1707352252993,-500.0,0.00049315,61]
[313445711,1707352253003,-500.0,0.00049315,61]
[313445712,1707352253013,-500.0,0.00049315,61]
[313445713,1707352253023,-500.0,0.00049315,61]
[313445714,1707352253033,-500.0,0.00049315,61]
[313445715,1707352253042,-500.0,0.00049315,61]
[313445716,1707352253053,-500.0,0.00049315,61]
[313445717,1707352253063,-500.0,0.00049315,61]
[313445718,1707352253072,-500.0,0.00049315,61]
[313445719,1707352253081,-500.0,0.00049315,61]
[313445720,1707352253091,-500.0,0.00049315,61]
[313445721,1707352253100,-500.0,0.00049315,61]
[313445722,1707352253111,-500.0,0.00049315,61]
[313445723,1707352253131,-619.87,0.00049315,61]
[313445724,1707352253143,-500.0,0.00049315,61]
[313445725,1707352253153,-500.0,0.00049315,61]
[313445726,1707352253163,-500.0,0.00049315,61]
[313445727,1707352253173,-500.0,0.00049315,61]
[313445728,1707352253183,-500.0,0.00049315,61]
[313445729,1707352253194,-500.0,0.00049315,61]
[313445730,1707352253204,-500.0,0.00049315,61]
[313445731,1707352253215,-500.0,0.00049315,61]
[313445732,1707352253227,-500.0,0.00049315,61]
[313445733,1707352253238,-646.66,0.00049315,61]
[313445734,1707352253248,-500.0,0.00049315,61]
[313445735,1707352253259,-500.0,0.00049315,61]
[313445736,1707352253269,-500.0,0.00049315,61]
[313445737,1707352253279,-500.0,0.00049315,120]
[313445738,1707352253290,-500.0,0.00049315,61]
[313445739,1707352253303,-500.0,0.00049315,61]
[313445740,1707352253313,-500.0,0.00049315,7]
[313445741,1707352253323,-500.0,0.00049315,61]
[313445742,1707352253334,-500.0,0.00049315,61]
[313445743,1707352253345,-500.0,0.00049315,61]
[313445744,1707352253355,-838.39,0.00049315,61]
[313445745,1707352253365,-886.28,0.00049315,61]
[313445746,1707352253377,-199.89797291,0.00049315,14]
[313445747,1707352253387,-500.0,0.00049315,61]
[313445748,1707352253534,-532.41,0.00049315,61]
[313445749,1707352253543,-533.37462543,0.00049315,61]
[313445750,1707352253553,-921.51,0.00049315,61]
[313445751,1707352253562,-500.0,0.00049315,61]
[313445752,1707352253571,-500.0,0.00049315,61]
[313445753,1707352253580,-1188.35,0.00049315,61]
[313445754,1707352253589,-500.0,0.00049315,61]
[313445755,1707352253598,-500.0,0.00049315,61]
[313445756,1707352253608,-501.35377414,0.00049315,61]
[313445757,1707352253617,-752.91,0.00049315,61]
[313445758,1707352253626,-500.0,0.00049315,61]
[313445759,1707352253635,-500.0,0.00049315,61]
[313445760,1707352253644,-500.0,0.00049315,61]
[313445761,1707352253653,-500.0,0.00049315,61]
[313445762,1707352253662,-500.0,0.00049315,61]
[313445763,1707352253671,-500.0,0.00049315,61]
[313445764,1707352253680,-500.0,0.00049315,61]
[313445765,1707352253689,-500.0,0.00049315,61]
[313445766,1707352253698,-500.0,0.00049315,61]
[313445767,1707352253707,-500.0,0.00049315,61]
[313445768,1707352253716,-500.0,0.00049315,61]
[313445769,1707352253725,-500.0,0.00049315,61]
[313445770,1707352253735,-500.0,0.00049315,61]
[313445771,1707352253744,-500.0,0.00049315,61]
[313445772,1707352253753,-500.0,0.00049315,61]
[313445773,1707352253762,-1178.99,0.00049315,61]
[313445774,1707352253772,-500.0,0.00049315,61]
[313445775,1707352253781,-250.0,0.00049315,61]
[313445776,1707352253790,-516.99227661,0.00049315,61]
[313445777,1707352253800,-500.0,0.00049315,61]
[313445778,1707352253810,-1156.2,0.00049315,61]
[313445779,1707352253821,-562.30090604,0.00049315,61]
[313445780,1707352253830,-537.45671671,0.00049315,61]
[313445781,1707352253839,-554.31,0.00049315,61]
[313445782,1707352253848,-626.73,0.00049315,61]
[313445783,1707352253860,-964.35,0.00049315,61]
[313445784,1707352253870,-500.0,0.00049315,61]
[313445785,1707352253879,-527.21787265,0.00049315,61]
[313445786,1707352253887,-500.0,0.00049315,61]
[313445787,1707352253897,-500.0,0.00049315,61]
[313445788,1707352253906,-500.0,0.00049315,61]
[313445789,1707352253920,-500.0,0.00049315,61]
[313445790,1707352253930,-1082.62,0.00049315,61]
[313445791,1707352253939,-500.0,0.00049315,61]
[313445792,1707352253950,-500.0,0.00049315,61]
[313445793,1707352253959,-500.0,0.00049315,61]
[313445794,1707352253969,-500.0,0.00049315,61]
[313445795,1707352253978,-500.0,0.00049315,61]
[313445796,1707352253987,-500.0,0.00049315,61]
[313445797,1707352253997,-500.0,0.00049315,61]
[313445798,1707352254006,-500.0,0.00049315,61]
[313445799,1707352254016,-500.0,0.00049315,61]
[313445800,1707352254026,-500.0,0.00049315,61]
[313445801,1707352254036,-378.81007727,0.00049315,61]
[313445802,1707352254045,-500.0,0.00049315,61]
[313445803,1707352254055,-500.0,0.00049315,61]
[313445804,1707352254065,-500.0,0.00049315,61]
[313445805,1707352254074,-500.0,0.00049315,61]
[313445806,1707352254084,-256.28097416,0.00049315,61]
[313445807,1707352254093,-500.0,0.00049315,61]
[313445808,1707352254103,-500.0,0.00049315,61]
[313445809,1707352254116,-523.0,0.00049315,61]
[313445810,1707352254126,-576.32,0.00049315,61]
[313445811,1707352254135,-500.0,0.00049315,61]
[313445812,1707352254145,-500.0,0.00049315,61]
[313445813,1707352254154,-581.16,0.00049315,61]
[313445814,1707352254164,-500.0,0.00049315,61]
[313445815,1707352254174,-500.0,0.00049315,61]
[313445816,1707352254184,-380.30944536,0.00049315,61]
[313445817,1707352254193,-500.0,0.00049315,61]
[313445818,1707352254202,-500.0,0.00049315,61]
[313445819,1707352254212,-500.0,0.00049315,61]
[313445820,1707352254221,-552.02,0.00049315,61]
[313445821,1707352254231,-589.97,0.00049315,61]
[313445822,1707352254241,-500.0,0.00049315,61]
[313445823,1707352254251,-500.0,0.00049315,61]
[313445824,1707352254262,-500.0,0.00049315,61]
[313445825,1707352254271,-828.21,0.00049315,61]
[313445826,1707352254281,-500.0,0.00049315,61]
[313445827,1707352254291,-500.0,0.00049315,61]
[313445828,1707352254304,-553.25,0.00049315,61]
[313445829,1707352254313,-500.0,0.00049315,61]
[313445830,1707352254323,-500.0,0.00049315,61]
[313445831,1707352254332,-500.0,0.00049315,61]
[313445832,1707352254342,-500.0,0.00049315,61]
[313445833,1707352254351,-500.0,0.00049315,61]
[313445834,1707352254362,-500.0,0.00049315,61]
[313445835,1707352254374,-503.48183195,0.00049315,61]
[313445836,1707352254383,-500.0,0.00049315,61]
[313445837,1707352254392,-500.0,0.00049315,61]
[313445838,1707352254402,-500.0,0.00049315,61]
[313445839,1707352254412,-500.0,0.00049315,61]
[313445840,1707352254422,-500.0,0.00049315,61]
[313445841,1707352254432,-500.0,0.00049315,61]
[313445842,1707352254441,-500.0,0.00049315,61]
[313445843,1707352254453,-500.0,0.00049315,61]
[313445844,1707352254462,-500.0,0.00049315,61]
[313445845,1707352254471,-769.95,0.00049315,61]
[313445846,1707352254481,-530.42,0.00049315,61]
[313445847,1707352254492,-500.0,0.00049315,61]
[313445848,1707352254502,-515.23028577,0.00049315,61]
[313445849,1707352254513,-500.0,0.00049315,61]
[313445850,1707352254522,-676.95,0.00049315,61]
[313445851,1707352254534,-500.0,0.00049315,61]
[313445852,1707352254544,-500.0,0.00049315,61]
[313445853,1707352254553,-500.0,0.00049315,61]
[313445854,1707352254562,-500.0,0.00049315,61]
[313445855,1707352254572,-500.0,0.00049315,61]
[313445856,1707352254581,-271.38167914,0.00049315,61]
[313445857,1707352254591,-1329.87,0.00049315,61]
[313445858,1707352254601,-500.0,0.00049315,61]
[313445859,1707352254613,-500.0,0.00049315,30]
[313445860,1707352254624,-292.00643514,0.00049315,61]
[313445861,1707352254634,-500.0,0.00049315,61]
[313445862,1707352254645,-500.0,0.00049315,61]
[313445863,1707352254654,-500.0,0.00049315,61]
[313445864,1707352254665,-500.0,0.00049315,61]
[313445865,1707352254675,-1375.88,0.00049315,2]
[313445866,1707352254685,-500.0,0.00049315,61]
[313445867,1707352254695,-500.0,0.00049315,61]
[313445868,1707352254704,-523.23,0.00049315,61]
[313445869,1707352254714,-500.0,0.00049315,61]
[313445870,1707352254724,-521.26,0.00049315,61]
[313445871,1707352254733,-1000.0,0.00049315,61]
[313445872,1707352254742,-500.0,0.00049315,61]
[313445873,1707352254752,-630.16305266,0.00049315,61]
[313445874,1707352254761,-500.0,0.00049315,61]
[313445875,1707352254776,-500.0,0.00049315,61]
[313445876,1707352254786,-633.31,0.00049315,61]
[313445877,1707352254797,-500.0,0.00049315,61]
[313445878,1707352254808,-500.0,0.00049315,61]
[313445879,1707352254817,-500.0,0.00049315,61]
[313445880,1707352254828,-238.00270007,0.00049315,61]
[313445881,1707352254838,-500.0,0.00049315,61]
[313445882,1707352254847,-500.0,0.00049315,61]
[313445883,1707352254858,-500.0,0.00049315,61]
[313445884,1707352254869,-500.0,0.00049315,61]
[313445885,1707352254878,-590.3,0.00049315,61]
[313445886,1707352254888,-613.24,0.00049315,61]
[313445887,1707352254898,-601.76548069,0.00049315,61]
[313445888,1707352254907,-500.0,0.00049315,61]
[313445889,1707352254917,-500.0,0.00049315,61]
[313445890,1707352254926,-500.0,0.00049315,61]
[313445891,1707352254936,-619.31,0.00049315,61]
[313445892,1707352254946,-500.0,0.00049315,61]
[313445893,1707352254955,-500.0,0.00049315,61]
[313445894,1707352254965,-500.0,0.00049315,61]
[313445895,1707352254974,-500.0,0.00049315,61]
[313445896,1707352254984,-1179.89,0.00049315,61]
[313445897,1707352254993,-500.0,0.00049315,61]
[313445898,1707352255003,-500.0,0.00049315,61]
[313445899,1707352255012,-500.0,0.00049315,61]
[313445900,1707352255022,-1052.52,0.00049315,61]
[313445901,1707352255031,-500.0,0.00049315,61]
[313445902,1707352255040,-500.0,0.00049315,61]
[313445903,1707352255050,-500.0,0.00049315,61]
[313445904,1707352255059,-500.0,0.00049315,61]
[313445905,1707352255069,-500.0,0.00049315,61]
[313445906,1707352255078,-500.0,0.00049315,61]
[313445907,1707352255087,-500.0,0.00049315,61]
[313445908,1707352255097,-594.43,0.00049315,61]
[313445909,1707352255107,-894.64,0.00049315,61]
[313445910,1707352255118,-500.0,0.00049315,61]
[313445911,1707352255128,-325.8421,0.00049315,61]
[313445912,1707352255138,-500.0,0.00049315,61]
[313445913,1707352255149,-500.0,0.00049315,61]
[313445914,1707352255160,-500.0,0.00049315,61]
[313445915,1707352255170,-500.0,0.00049315,61]
[313445916,1707352255179,-500.0,0.00049315,61]
[313445917,1707352255189,-500.0,0.00049315,61]
[313445918,1707352255198,-500.0,0.00049315,61]
[313445919,1707352255208,-1396.11,0.00049315,61]
[313445920,1707352255218,-632.69,0.00049315,61]
[313445921,1707352255228,-714.51,0.00049315,61]
[313445922,1707352255239,-500.0,0.00049315,61]
[313445923,1707352255250,-500.0,0.00049315,61]
[313445924,1707352255258,-500.0,0.00049315,61]
[313445925,1707352255268,-724.25,0.00049315,61]
[313445926,1707352255277,-500.0,0.00049315,61]
[313445927,1707352255290,-500.0,0.00049315,61]
[313445928,1707352255300,-500.0,0.00049315,61]
[313445929,1707352255309,-500.0,0.00049315,61]
[313445930,1707352255319,-500.0,0.00049315,31]
[313445931,1707352255330,-500.0,0.00049315,61]
[313445932,1707352255339,-500.0,0.00049315,61]
[313445933,1707352255349,-500.0,0.00049315,61]
[313445934,1707352255358,-500.0,0.00049315,61]
[313445935,1707352255370,-500.0,0.00049315,61]
[313445936,1707352255380,-689.89,0.00049315,61]
[313445937,1707352255390,-500.0,0.00049315,61]
[313445938,1707352255399,-520.54,0.00049315,61]
[313445939,1707352255408,-500.0,0.00049315,61]
[313445940,1707352255417,-500.0,0.00049315,61]
[313445941,1707352255427,-500.0,0.00049315,61]
[313445942,1707352255436,-500.0,0.00049315,61]
[313445943,1707352255445,-500.0,0.00049315,61]
[313445944,1707352255454,-500.0,0.00049315,61]
[313445945,1707352255463,-500.0,0.00049315,61]
[313445946,1707352255473,-500.0,0.00049315,61]
[313445947,1707352255482,-500.0,0.00049315,61]
[313445948,1707352255491,-760.56,0.00049315,61]
[313445949,1707352255500,-500.0,0.00049315,61]
[313445950,1707352255510,-500.0,0.00049315,61]
[313445951,1707352255519,-749.32,0.00049315,61]
[313445952,1707352255529,-876.65,0.00049315,61]
[313445953,1707352255538,-500.0,0.00049315,61]
[313445954,1707352255549,-500.0,0.00049315,61]